Cogmind - Beta 15 @@@ ROGUE MODE // 2025.07.10 @ 22:11:17 Player: xgames Result: Destroyed by M3-KSS(R) with Subdweller Shrapnel Launcher Performance ------------- Evolutions (0) 0 Regions Visited (3) 600 Robots Destroyed (38) 190 Value Destroyed (539) 539 Prototype IDs (4) 80 Alien Tech Used (0) 0 Bonus (0) 0 TOTAL SCORE: 1409 Bonus ------- None Cogmind --------- Core Integrity 0/250 Matter 268/300 Energy 100/100 System Corruption 1% Temperature Cool (0) Movement Treading (240) Ox1 Location -10/Subcaves Parts ------- > --- POWER (1) -------- (None) > --- PROPULSION (2) --- Light Treads > --- UTILITY (2) ------ Large Storage Unit Structural Scanner (fused) > --- WEAPON (2) ------- Light Assault Rifle > --- INVENTORY (15) --- Light Ion Engine Light Ion Engine Light Treads Light Treads Light Treads Wheel Huge Storage Unit Visual Processing Unit Seismic Detector Seismic Detector EM Pulse Gun Assault Rifle Mining Laser Peak State ------------ > --- POWER ------------ Light Ion Engine > --- PROPULSION ------- Light Treads Light Treads > --- UTILITY ---------- Huge Storage Unit Seismic Detector > --- WEAPON ----------- Small Laser Small Laser > --- INVENTORY -------- Ion Engine Light Ion Engine Aluminum Leg Aluminum Leg Wheel Compact Wheel Small Storage Unit Structural Scanner Seismic Detector Assault Rifle [Rating: 8] Favorites ----------- Power Light Ion Engine Engine Light Ion Engine Propulsion Light Treads Treads Light Treads Utility Large Storage Unit Device Seismic Detector Storage Large Storage Unit Weapon Assault Rifle Energy Gun Small Laser Ballistic Gun Assault Rifle Ballistic Cannon Light Cannon Launcher Grenade Launcher Build | -11 -10 -10 -10 ------- Run | Yrd Mat Min Sub Slots Evolved . | . . . . Power . | . . . . Propulsion . | . . . . Utility . | . . . . Weapon . | . . . . Parts Attached 25 | 8 11 3 3 Power 3 | 1 2 . . Engine 3 | 1 2 . . Core . | . . . . Reactor . | . . . . Propulsion 5 | 2 1 . 2 Treads 5 | 2 1 . 2 Leg . | . . . . Wheel . | . . . . Hover . | . . . . Flight . | . . . . Utility 6 | 2 2 2 . Device 3 | 1 . 2 . Storage 3 | 1 2 . . Processor . | . . . . Hackware . | . . . . Protection . | . . . . Artifact . | . . . . Weapon 11 | 3 6 1 1 Energy Gun 3 | 2 1 . . Energy Cannon . | . . . . Ballistic Gun 5 | 1 3 1 . Ballistic Cannon 1 | . . . 1 Launcher 2 | . 2 . . Special Weapon . | . . . . Impact Weapon . | . . . . Slashing Weapon . | . . . . Piercing Weapon . | . . . . Special Melee Weapon . | . . . . Unidentified Prototypes . | . . . . Parts Lost 9 | . 4 . 5 Power 3 | . 2 . 1 Propulsion 2 | . . . 2 Utility . | . . . . Weapon 4 | . 2 . 2 Highest Loss Streak 5 | . 1 . 5 To Critical Strikes . | . . . . Average Backups 12 | 4 12 14 14 Power . | . 1 . 2 Propulsion 4 | 2 4 5 5 Utility 3 | . 3 4 4 Weapon 3 | . 3 4 3 Tool/Special . | . . . . Unused Backups 11 | . 2 1 8 Power 2 | . . . 2 Propulsion 5 | . 2 1 2 Utility 2 | . . . 2 Weapon 2 | . . . 2 Tool/Special . | . . . . Average Slot Usage (%) 97 | . 96 100 85 Engine 12 | . 11 14 14 Treads 27 | . 28 28 19 Device 14 | . 14 14 14 Storage 14 | . 14 14 14 Energy Gun 6 | . 11 . . Ballistic Gun 17 | . 13 23 22 Launcher 3 | . 2 4 . Peak Build Rating 8 | 7 8 8 8 Average Rating 7 | 5 7 7 6 On Entrance 5 | . 7 8 8 Naked Turns . | . . . . Heaviest Build 90 | 11 90 31 30 Greatest Support 40 | 40 40 40 40 Greatest Overweight (x) 8 | . 2 . 8 Average Overweight (x) . | . . . . Largest Inventory Capacity 25 | 8 25 15 15 Average Capacity 17 | 7 19 15 15 Most Carried 17 | 7 17 15 15 Average Carried 12 | 4 12 14 14 Final Capacity 15 | 8 15 15 15 Final Carried 15 | 6 14 15 13 Class Distribution -------------------- 100% | Mutant Dominant Class ---------------- Mutant | -10/Materials Mutant | -10/Mines Mutant | -10/Subcaves Resources | -11 -10 -10 -10 ----------- Run | Yrd Mat Min Sub Matter Collected 875 | 319 360 196 . Remotely . | . . . . Salvage Created 673 | 59 450 164 . Parts 67 | 7 37 23 . Haulers Intercepted . | . . . . Recyclers Shooed 2 | . 1 1 . Parts Field Recycled . | . . . . Retrieved Matter . | . . . . Parts Self-Destructed . | . . . . Prevented . | . . . . Kills | -11 -10 -10 -10 ------- Run | Yrd Mat Min Sub Combat Hostiles Destroyed 24 | . 15 9 . Guns 8 | . 7 1 . AOE 16 | . 8 8 . Classes Destroyed 7 | 2 4 1 . Worker 3 | 2 1 . . Builder 3 | . . 3 . Tunneler 2 | 1 1 . . Recycler 3 | . 2 1 . Watcher 3 | . 3 . . Swarmer 17 | . 8 9 . Grunt 7 | . 7 . . Best Kill Streak 8 | 1 8 3 . Combat Bots Only 6 | . 6 3 . Max Kills in Single Turn 3 | 1 3 3 . Gunslinging . | . . . . Exploded 3 | . 3 3 . Melee . | . . . . Uniques/NPCs Destroyed . | . . . . Combat | -11 -10 -10 -10 -------- Run | Yrd Mat Min Sub Hostile Shots Fired 119 | . 78 24 17 Missed 33 | . 21 7 5 Hits 86 | . 57 17 12 Projectile 86 | . 57 17 12 AOE 7 | . . . 7 Critical Strikes 1 | . 1 . . Damage Taken 1373 | . 679 150 544 Core 305 | . 78 22 205 Absorbed by Shields . | . . . . Core Remaining (%) 100 | 100 . . . Volleys Fired 79 | 10 49 18 2 Largest 2 | 2 2 2 2 Hottest 90 | 80 90 40 50 Shots Fired 145 | 20 91 31 3 Gun 127 | 20 79 26 2 Cannon 1 | . . . 1 Launcher 17 | . 12 5 . Special . | . . . . Kinetic 94 | 7 58 26 3 Thermal 34 | 13 21 . . Explosive 17 | . 12 5 . Electromagnetic . | . . . . Robot Hit Streak 8 | 5 8 7 5 Robot Miss Streak 3 | 3 2 3 1 Penetration Max . | . . . . Secondary Targets . | . . . . Shots Hit Robots 84 | 11 57 14 2 Core Hits 52 | 3 35 14 . Critical Kills 1 | . 1 . . Critical Parts Destroyed . | . . . . Critical Strikes 1 | . 1 . . Destroy 1 | . 1 . . Melee Attacks . | . . . . Impact . | . . . . Slashing . | . . . . Piercing . | . . . . Sneak Attacks . | . . . . Combat Hostiles . | . . . . Follow-up Attacks . | . . . . Damage Inflicted 1986 | 117 1337 505 27 Guns 769 | 117 518 126 8 Cannons 19 | . . . 19 Explosions 1183 | . 814 369 . Melee . | . . . . Ramming 15 | . 5 10 . Kinetic 556 | 32 371 126 27 Thermal 232 | 85 147 . . Explosive 1183 | . 814 369 . Electromagnetic . | . . . . Impact . | . . . . Slashing . | . . . . Piercing . | . . . . Highest Corruption 1 | . 1 1 1 Average Corruption 1 | . 1 1 1 Corruption Purged . | . . . . Corruption Blocked . | . . . . Effects 19 | . 12 6 1 Message Errors 5 | . 4 . 1 Matter Fused 5 | . 4 1 . Heat Flow Errors 2 | . 2 . . Energy Discharges 2 | . 1 1 . Parts Fused 1 | . . 1 . Data Loss (minor) 1 | . . 1 . Misfires 3 | . 1 2 . Overload Shots . | . . . . Overflow Damage 93 | . 59 34 . Projectiles . | . . . . Explosions 93 | . 59 34 . Melee . | . . . . Knockbacks . | . . . . Impact . | . . . . Kinetic . | . . . . Secondary . | . . . . Self-Inflicted Damage 82 | . 62 20 . Shots 3 | . 2 1 . Rammed 5 | 1 2 2 . Targets Rammed 6 | 1 2 3 . Kicked . | . . . . Crushed 1 | . . 1 . Highest Temperature 207 | 36 207 2 . Average Temperature 32 | 17 35 2 . Received Heat Transfer 264 | . 222 . 42 Siege Activations . | . . . . Martial Activations . | . . . . Shielding Activations . | . . . . Robots Disrupted . | . . . . Combat Hostiles . | . . . . Robots Corrupted . | . . . . Combat Hostiles . | . . . . Parts Fried . | . . . . Impact Corruptions . | . . . . Robots Melted . | . . . . Combat Hostiles . | . . . . Parts Melted . | . . . . Heat Transferred 597 | 200 397 . . Parts Sabotaged . | . . . . Parts Stolen . | . . . . Parts Stripped . | . . . . Power Chain Reactions . | . . . . Alert | -11 -10 -10 -10 ------- Run | Yrd Mat Min Sub Maximum Alert Level 1 | . 1 . . Low Security (%) 94 | 100 89 100 . Level 1 5 | . 10 . . Level 2 . | . . . . Level 3 . | . . . . Level 4 . | . . . . Level 5 . | . . . . High Security . | . . . . Max Security . | . . . . Peak Influence 212 | 5 212 113 . Initial 71 | . . 71 . Average 70 | . 103 38 . Influence Increases 805 | 15 524 266 . Destroy 0b10 Robot/C 480 | . 300 180 . Destroy 0b10 Robot/NC 70 | 15 35 20 . Destroy Leader 96 | . 66 30 . Successful Hack 30 | . 30 . . Disable Machine 30 | . 30 . . Destroy Structure 84 | . 48 36 . Lose Combat Pursuer 15 | . 15 . . Influence Decreases 805 | 15 340 438 12 Entered New Map 120 | . . 113 7 Time Decay 650 | 15 310 325 . Lost Part 35 | . 30 . 5 Squads Dispatched 3 | . 3 . . Investigation 2 | . 2 . . Extermination . | . . . . Reinforcement 1 | . 1 . . Assault . | . . . . Garrison . | . . . . Intercept . | . . . . Searches Triggered . | . . . . Construction Impeded . | . . . . Haulers Reinforced . | . . . . Active Scanning Responses . | . . . . Cargo Convoy Interrupts . | . . . . Stealth | -11 -10 -10 -10 --------- Run | Yrd Mat Min Sub Distress Signals 1 | . 1 . . Communications Jammed . | . . . . Distress Signals . | . . . . Times Spotted 35 | . 24 9 2 Peak Tracking Total 6 | . 6 3 2 Tactical Retreats 1 | . 1 . . Traps | -11 -10 -10 -10 ------- Run | Yrd Mat Min Sub Traps Triggered 2 | . 2 . . Indirectly . | . . . . Trap Hack Attempts . | . . . . Triggered . | . . . . Disarmed . | . . . . Reprogrammed . | . . . . Reused . | . . . . Traps Extracted . | . . . . Installed . | . . . . Triggered . | . . . . Machines | -11 -10 -10 -10 ---------- Run | Yrd Mat Min Sub Machines Disabled 2 | . 2 . . Max in Single Turn 1 | . 1 . . Machines Repaired . | . . . . Machines Dismantled . | . . . . Machines Sabotaged . | . . . . Overloaded Fab Kills . | . . . . Hacking | -11 -10 -10 -10 --------- Run | Yrd Mat Min Sub Machines Accessed 6 | . 6 . . Terminals 5 | . 5 . . Fabricators . | . . . . Repair Stations 1 | . 1 . . Recycling Units . | . . . . Scanalyzers . | . . . . Garrison Access . | . . . . Total Hacks 16 | . 16 . . Successful 7 | . 7 . . Failed 9 | . 9 . . Catastrophic 2 | . 2 . . Database Lockouts . | . . . . Manual 8 | . 8 . . Terminals 14 | . 14 . . Fabricators . | . . . . Repair Stations 2 | . 2 . . Recycling Units . | . . . . Scanalyzers . | . . . . Garrison Access . | . . . . Terminal Hacks 6 | . 6 . . Record 1 | . 1 . . Robot Analysis 1 | . 1 . . Prototype ID Bank 2 | . 2 . . Branch Access Points 1 | . 1 . . Locate Traps 1 | . 1 . . Fabricator Hacks . | . . . . Repair Station Hacks 1 | . 1 . . Scan Component 1 | . 1 . . Recycling Unit Hacks . | . . . . Scanalyzer . | . . . . Garrison Access Hacks . | . . . . Unauthorized Hacks . | . . . . Terminals . | . . . . Fabricators . | . . . . Repair Stations . | . . . . Recycling Units . | . . . . Scanalyzers . | . . . . Garrison Access . | . . . . Data Cores Recovered . | . . . . Used . | . . . . Hacking Detections 6 | . 6 . . Full Trace Events 2 | . 2 . . Feedback Events . | . . . . Feedback Blocked . | . . . . Robot Schematics Acquired . | . . . . Robots Built . | . . . . Authchips . | . . . . Time . | . . . . Total Robot Build Rating . | . . . . Part Schematics Acquired . | . . . . Parts Built . | . . . . Authchips . | . . . . Time . | . . . . Total Part Build Rating . | . . . . Parts Repaired . | . . . . Time . | . . . . Parts Recycled . | . . . . Recycled Matter . | . . . . Retrieved Matter . | . . . . Retrieved Components . | . . . . Parts Scanalyzed . | . . . . Part Schematics Acquired . | . . . . Parts Damaged . | . . . . Bothacking | -11 -10 -10 -10 ------------ Run | Yrd Mat Min Sub Used RIF Installer . | . . . . Robots Hacked . | . . . . Non-combat . | . . . . Combat . | . . . . Robot Hacks Applied . | . . . . Relay Couplers Released . | . . . . Fabnet Peak Effective % . | . . . . Robots Rewired . | . . . . Allies Hacked . | . . . . Hacks Repelled . | . . . . Allies | -11 -10 -10 -10 -------- Run | Yrd Mat Min Sub Total Allies 1 | . . 1 . Largest Group 1 | . . 1 . Highest-Rated Group 31 | . . 31 . Highest-Rated Ally 31 | . . 31 . Total Orders . | . . . . Ally Attacks . | . . . . Total Damage . | . . . . Kills . | . . . . Allies Corrupted . | . . . . Allies Melted . | . . . . Intel | -11 -10 -10 -10 ------- Run | Yrd Mat Min Sub Active Infowar (turns) 3030 | 2 1780 1210 38 Terrain 6 | . . 6 . Structural 1095 | . . 1057 38 Seismic 1929 | 2 1780 147 . Robot Analysis Total 1 | . 1 . . Derelict Logs Recovered 1 | . . 1 . Drone Launches . | . . . . Drone Recoveries . | . . . . Exploration | -11 -10 -10 -10 ------------- Run | Yrd Mat Min Sub Turns Passed 3285 | 257 1780 1210 38 Spaces Moved 1607 | 129 751 712 15 Core 6 | 5 . . 1 Treads 1601 | 124 751 712 14 Legs . | . . . . Wheels . | . . . . Hover . | . . . . Flight . | . . . . Fastest Speed 50 | 50 160 160 160 Average Speed 184 | 155 212 160 195 Slowest Speed 450 | 160 320 160 450 Overloaded Moves . | . . . . Propulsion Burnouts . | . . . . Robots Hopped . | . . . . Potential Cave-ins . | . . . . Cave-ins Triggered . | . . . . Exploration Rate (%) 49 | 10 85 97 5 Regions Visited 3 Branch Regions 2 Pre-discovered Areas . | . . . . Known Exits Taken 1 | . 1 . . Unknown Exits Taken 2 | 1 . 1 . Scrap Searched 1 | . . 1 . Spaces Dug . | . . . . Terrain Destroyed 103 | . 57 46 . Melee . | . . . . Projectile . | . . . . AOE 103 | . 57 46 . Terrain Rammed . | . . . . Walls Destroyed . | . . . . Machines Disabled . | . . . . Actions | -11 -10 -10 -10 --------- Run | Yrd Mat Min Sub Total 1790 | 163 850 756 21 Wait 15 | . 13 2 . Move 1604 | 128 750 711 15 Hop . | . . . . Pick Up 38 | 13 17 8 . Fast Attach . | . . . . Attach 14 | 7 4 1 2 Detach . | . . . . Swap 24 | 4 12 6 2 Drop 10 | . 3 7 . Fire 79 | 10 49 18 2 Melee . | . . . . Ram . | . . . . Kick . | . . . . Crush 6 | 1 2 3 . Escape Stasis . | . . . . Rewire . | . . . . Trap . | . . . . Miscellaneous . | . . . . Route ------- -11/Scrapyard -10/Materials (discovered 4 exits: [*Mat x2] / *Min / [*Sub]) -10/Mines (discovered 3 exits: [*Mat x2] / [*Sub]) -10/Subcaves History --------- Turn | Location | Event 13 | -11/Scrapyard | Discovered new exit (range 15) 258 | -11/Scrapyard | Entered Materials 320 | -10/Materials | Build established: Mutant 480 | -10/Materials | Discovered new exit (range 16) 1256 | -10/Materials | Discovered new exit (range 16) 1373 | -10/Materials | Discovered new exit (range 8) 1458 | -10/Materials | Identified exit to Mines 1884 | -10/Materials | Discovered new exit (range 10) 2038 | -10/Materials | Entered Mines 2041 | -10/Mines | Received a Mining Laser from a helpful Derelict 2129 | -10/Mines | Discovered new exit (range 13) 2430 | -10/Mines | Learned Materials garrison access intel 2464 | -10/Mines | Discovered new exit (range 13) 2824 | -10/Mines | Found a hidden stash of uninstalled traps 2992 | -10/Mines | Discovered new exit (range 6) 3248 | -10/Mines | Entered Subcaves 3264 | -10/Subcaves | A swath of the cavern ceiling suddenly collapsed 3271 | -10/Subcaves | Core integrity fell below 50% 3280 | -10/Subcaves | Core integrity fell below 20% 3286 | -10/Subcaves | Destroyed by M3-KSS(R) with Subdweller Shrapnel Launcher Last Messages --------------- 03073_ The unstable cave ceiling collapses. 03077_ Dropped Com. Wheel. 03078_ Acquired Lgt. Ion Engine. 03080_ Acquired 9 matter. 03083_ Acquired 10 matter. 03109_ System corrupted: FCS attempts to trigger Lgt. Assault Rifle. 03109_ System corrupted: Lgt. Assault Rifle misfires. 03216_ Slammed into K-01 Serf. 03217_ Acquired 8 matter. LOCATION=UNKNOWN AMBIENT_HEAT=-10 GOAL=ESCAPE 03254_ PYG 6QQZ|ACTP=TYLCH5QFR 03264_ Y-45 Defender crushed by falling debris. A swath of the cavern ceiling suddenly collapses. 03266_ Lgt. Treads destroyed. 03268_ Lgt. Cannon destroyed. 03270_ Grenade Launcher destroyed. 03274_ Lgt. Treads destroyed. 03286_ Ion Engine destroyed. Map ----- +----------------------------------------------------+ | ?????????????????????????????????????????????????? | | ?????????????????????????????????????????????????? | | ?????????????????????????????????????????????????? | | ?????????????????????????????????????????????????? | | ?????????????????????????????????????????????????? | | ?????????????????????????????????????????????????? | | ?????????????????????????????????????????????????? | | ?????????????????????????????????????????????????? | | ?????????????????????????????????????????????????? | | ?????????????????????????????????????????????????? | | ?????????????????????????????????????????????????? | | ?????????????????????????###?????????????????????? | | ?????????????????????????"##?????????????????????? | | ?????????????????????????#"##????????????????????? | | ???????????????????????? ;##????????????????????? | | ???????????????????????? ; ?#"#????????????????? | | ???????????????????????#""; ?"##????????????????? | | ???????????????????????### ??"##??? ##?????????? | | ???????????????????????#Y ;#?";""?? ##?????????? | | ????????????????????###";;###;##?? #?????????? | | ??????????????????#####"# ###;"## ??????????? | | ??????????????????###";#; ;#;#### ?????????? | | ??????????????????##"##;# #### ??????????? | | ??????????????????##;# #; ;;;; ??????????????? | | ??????????????????##;; # ????????????????? | | ?????????????????? ### @ ## ???????????????? | | ??????????????????? ## ### ??????????????? | | ???????????????????## ###??????????????? | | ????????????????###### ##??????????????? | | ??????????????######## ##??????????????? | | ?????????????##### ###?????????????? | | ?????????????### ##?????????????? | | ?????????????## ##?????????????? | | ?????????????## ## ; ##?????????????? | | ?????????????## # #### # ????????????? | | ?????????????### ###### #### R ???????????? | | ??????????????##### ###########R ??????????? | | ??????????????#### ###?## ### % ??????????? | | ????????????????### ### ??????????? | | ????????????????## ???????????? | | ????????? ###?????? ???????????? | | ?????????## # ## ####???????????????????? | | ?????????####### ### ###????????????????????? | | ????????????############?###?????????????????????? | | ??????????????##########?###?????????????????????? | | ?????????????????????????????????????????????????? | | ?????????????????????????????????????????????????? | | ?????????????????????????????????????????????????? | | ?????????????????????????????????????????????????? | | ?????????????????????????????????????????????????? | +----------------------------------------------------+ Best States ------------- Heat Dissipation 25 Energy Generation 10 Energy Capacity 250 Matter Stores 300 Matter Capacity 300 Sight Range 16 Terrain Scan Range 14 Terrain Scan Density 10 Evasion (%) 40 Recoil Reduction 2 Item Schematics ----------------- None Robot Schematics ------------------ None Fabricated ------------ Nothing Repaired ---------- Nothing Alien Tech Used ----------------- None Achievements -------------- None Challenges ------------ None Game ------ Seed SystemReflexTrap Manual? 0 Play Time 00:24:30 Cumulative 6.7 hours Start 2025.07.10 @ 21:47:11 End 2025.07.10 @ 22:11:17 Sessions 1 Manual Loads 0 Difficulty Rogue Special Mode None Game No. 15 Rogue 15 Adventurer 0 Explorer 0 Win Type - Total 0 Types 0/0/0/0/0/0/0/0/0/0 Lore% 7 Gallery% 11 Achievement% 15 Wizard Run 0 Options --------- Layout 1 ASCII 0 Keyboard 0 Movement Mouse Keybinds 0 Fullscreen 1 Font 24/Smallcaps Map View 76x35 Zoom Use 0% Tactical HUD 1 Map Filters NONE Filters NONE Steam 1 RUN: 636cfde8-d7c4-47b0-8dd5-d7f3852638de